bitfinex/quotes_BTCUSD_20240730
["timestamp","ask_amount","ask_price","bid_price","bid_amount"]
[1722360381284,0.00090863,66041.0,66040.0,0.454269]
[1722360381485,0.0087517,66048.0,66047.0,0.454221]
[1722360381697,0.0087517,66048.0,66046.0,0.151409]
[1722360381905,0.07534716,66047.0,66046.0,0.006]
[1722360382075,0.07534716,66047.0,66046.0,0.157409]
[1722360382281,0.0087517,66048.0,66047.0,0.151407]
[1722360382481,0.0087517,66048.0,66047.0,0.075706]
[1722360382686,0.0087517,66048.0,66045.0,0.302822]
[1722360382999,0.0087517,66048.0,66044.0,0.302826]
[1722360383139,0.0087517,66048.0,66047.0,0.151407]
[1722360383344,0.0087517,66048.0,66047.0,0.4996449]
[1722360383849,0.1601567,66048.0,66042.0,0.302834]
[1722360384102,0.07534716,66047.0,66034.0,0.4747]
[1722360384306,0.151412,66045.0,66040.0,0.151421]
[1722360384492,0.00044439,66044.0,66041.0,0.15142]
[1722360384691,0.0087517,66048.0,66043.0,0.151414]
[1722360384692,0.1601567,66048.0,66043.0,0.151414]
[1722360384854,0.1601567,66048.0,66042.0,0.05425435]
[1722360384855,0.15141,66046.0,66044.0,0.08113574]
[1722360385034,0.151411,66045.0,66044.0,0.08113574]
[1722360385234,0.15167435,66046.0,66040.0,0.302845]
[1722360385436,0.151412,66045.0,66041.0,0.06660099]
[1722360385663,0.1601567,66048.0,66041.0,0.06660099]
[1722360385863,0.1601567,66048.0,66047.0,0.151407]
[1722360385864,0.0087517,66048.0,66047.0,0.151407]
[1722360386068,0.0087517,66048.0,66047.0,0.757035]
[1722360386228,0.0087517,66048.0,66047.0,0.454221]
[1722360387481,0.0087517,66048.0,66047.0,1.059849]
[1722360387758,0.0087517,66048.0,66047.0,1.68699036]
[1722360388769,0.0087517,66048.0,66047.0,0.94002043]
[1722360388971,0.0087517,66048.0,66047.0,0.62791532]
[1722360389207,0.0087517,66048.0,66047.0,0.60491532]
[1722360389405,0.0087517,66048.0,66047.0,0.770035]
[1722360389614,0.0087517,66048.0,66047.0,0.757035]
[1722360390052,0.0087517,66048.0,66047.0,0.762035]
[1722360390452,0.0087517,66048.0,66043.0,0.30283]
[1722360390658,0.0087517,66048.0,66047.0,0.467221]
[1722360391054,0.0087517,66048.0,66047.0,0.013]
[1722360391696,0.0087517,66048.0,66047.0,0.467221]
[1722360391901,0.0087517,66048.0,66047.0,0.454221]
[1722360392074,0.0087517,66048.0,66038.0,0.00907155]
[1722360392277,0.0087517,66048.0,66033.0,0.4747]
[1722360392278,0.1601567,66048.0,66047.0,0.01223489]
[1722360392477,0.23022,66042.0,66035.0,0.302867]
[1722360392853,0.0788,66042.0,66036.0,0.12519529]
[1722360393202,0.0788,66042.0,66041.0,0.454263]
[1722360393405,0.0864517,66048.0,66042.0,0.151418]
[1722360393569,0.302814,66047.0,66043.0,0.04665427]
[1722360393765,0.151412,66045.0,66041.0,0.16370274]
[1722360393968,0.151412,66045.0,66044.0,0.01225882]
[1722360394227,0.302814,66047.0,66040.0,0.151422]
[1722360394228,0.151415,66044.0,66040.0,0.151422]
[1722360394428,0.151412,66045.0,66040.0,0.19299427]
[1722360394652,0.1522742,66044.0,66041.0,0.09115709]
[1722360395008,0.151414,66044.0,66041.0,0.09115709]
[1722360395189,0.00073783,66043.0,66041.0,0.09115709]
[1722360395393,0.00090863,66044.0,66041.0,0.09115709]
[1722360395801,0.00090863,66044.0,66042.0,0.05454291]
[1722360396000,0.30373663,66044.0,66042.0,0.05454291]
[1722360396223,0.00090863,66044.0,66042.0,0.05454291]
[1722360396425,0.151415,66044.0,66042.0,0.05454291]
[1722360396674,0.151415,66044.0,66040.0,0.151422]
[1722360397138,0.00090863,66043.0,66040.0,0.151422]
[1722360397343,0.00090863,66043.0,66039.0,0.454273]
[1722360397535,0.00090863,66043.0,66040.0,0.08700077]
[1722360397976,0.00090863,66043.0,66040.0,0.23842277]
[1722360398158,0.00090863,66043.0,66041.0,0.15142]
[1722360398357,0.15232263,66044.0,66040.0,0.08700077]
[1722360398558,0.00090863,66044.0,66041.0,0.107569]
[1722360398774,0.15232263,66044.0,66041.0,0.107569]
[1722360398977,0.151412,66045.0,66041.0,0.258989]
[1722360399179,0.00033868,66044.0,66042.0,0.0864687]
[1722360399395,0.151416,66043.0,66042.0,0.0864687]
[1722360399587,0.3892647,66048.0,66031.0,0.363384]
[1722360399588,0.00090863,66045.0,66031.0,0.363384]
[1722360399791,0.07534716,66047.0,66026.0,0.48411]
[1722360399792,0.07534716,66037.0,66035.0,0.03725481]
[1722360399996,0.0608,66036.0,66020.0,0.5403]
[1722360400193,0.0608,66036.0,66021.0,0.13051797]
[1722360400194,0.302904,66028.0,66021.0,0.13051797]
[1722360400476,0.0815,66026.0,66025.0,0.151457]
[1722360400675,0.00090863,66027.0,66025.0,0.01604596]
[1722360400877,0.00090863,66029.0,66025.0,0.01604596]
[1722360401311,0.302902,66028.0,66021.0,0.151466]
[1722360401478,0.151456,66026.0,66021.0,0.151466]
[1722360401685,0.00090863,66025.0,66022.0,0.01243432]
[1722360401890,0.302923,66024.0,66019.0,0.000913]
[1722360402093,0.454381,66024.0,66023.0,0.01242634]
[1722360402298,0.454407,66020.0,66019.0,0.000913]
[1722360402518,0.757345,66020.0,66019.0,0.000913]
[1722360402719,1.23463856,66020.0,66019.0,0.000913]
[1722360402946,1.31073856,66020.0,66019.0,0.000913]
[1722360403155,1.00780056,66020.0,66019.0,0.000913]
[1722360404297,0.85716752,66020.0,66019.0,0.000913]
[1722360404489,0.530507,66020.0,66019.0,0.000913]
[1722360404827,0.0761,66020.0,66019.0,0.000913]
[1722360405041,0.1422,66032.0,66020.0,0.302938]
[1722360405217,0.00090863,66031.0,66028.0,0.151449]
[1722360405424,0.00090863,66031.0,66029.0,0.0454358]
[1722360405630,0.151446,66030.0,66029.0,0.01237847]
[1722360405848,0.151446,66030.0,66023.0,0.151462]
[1722360405849,0.151452,66028.0,66023.0,0.151462]
[1722360406047,0.00090863,66027.0,66025.0,0.151456]
[1722360406283,0.00090863,66027.0,66026.0,0.08331329]
[1722360406539,0.157444,66031.0,66026.0,0.55008069]
[1722360406809,0.151444,66031.0,66027.0,0.151452]
[1722360406950,0.15235463,66030.0,66028.0,0.05425893]
[1722360407150,0.15235463,66030.0,66028.0,0.01238645]
[1722360407708,0.15235463,66030.0,66029.0,0.01237847]
[1722360407835,0.151446,66030.0,66026.0,0.151455]
[1722360408036,0.15235263,66031.0,66027.0,0.0757293]
[1722360408439,0.151446,66030.0,66028.0,0.01238645]
[1722360408684,0.00090863,66029.0,66028.0,0.01238645]
[1722360408858,0.45525363,66029.0,66028.0,0.01238645]
[1722360409073,0.151454,66027.0,66022.0,0.151464]
[1722360409488,0.00090863,66026.0,66022.0,0.151464]
[1722360409707,0.00090863,66026.0,66023.0,0.2295863]
[1722360409959,0.00090863,66026.0,66024.0,0.151459]
[1722360410075,0.00090863,66028.0,66024.0,0.151459]
[1722360410283,0.15236063,66028.0,66023.0,0.0781253]
[1722360410531,0.15236063,66028.0,66024.0,0.21994893]
[1722360410853,0.151453,66027.0,66024.0,0.06848993]
[1722360410995,0.00090863,66026.0,66024.0,0.06848993]
[1722360411190,0.00090863,66026.0,66025.0,0.08258129]
[1722360411803,0.290769,66020.0,66019.0,0.00130161]
[1722360412005,0.896645,66020.0,66019.0,0.000913]
[1722360412211,1.04727804,66020.0,66019.0,0.000913]
[1722360412869,1.35021604,66020.0,66019.0,0.000913]
[1722360413274,1.35021604,66020.0,66019.0,0.001913]
[1722360414338,1.35021604,66020.0,66019.0,0.000913]
[1722360416370,1.80384836,66020.0,66019.0,0.000913]
[1722360416517,1.95499108,66020.0,66019.0,0.000913]
[1722360416729,1.80429676,66020.0,66019.0,0.000913]
[1722360417204,1.80429676,66020.0,65999.0,0.00064557]
[1722360417205,1.970635,66013.0,65999.0,0.00064557]
[1722360417416,2.24775792,66013.0,65982.0,0.303111]
[1722360417620,2.24775792,66013.0,65985.0,0.151548]
[1722360417816,2.34775792,66013.0,65985.0,0.151548]
[1722360418142,2.53673624,66013.0,65984.0,0.151551]
[1722360418335,2.58464929,66013.0,65979.0,0.303124]
[1722360418533,2.36604929,66013.0,66012.0,0.001924]
[1722360418740,2.58464929,66013.0,66012.0,0.000924]
[1722360418942,2.58464929,66013.0,66012.0,0.001924]
[1722360419796,2.025745,66013.0,66012.0,0.001924]
[1722360420149,2.358715,66013.0,66012.0,0.001924]
[1722360420589,2.328715,66013.0,66012.0,0.001924]
[1722360420795,2.025745,66013.0,66012.0,0.001924]
[1722360420993,1.99772476,66013.0,66012.0,0.001924]
[1722360421196,2.13380679,66013.0,66012.0,0.001924]
[1722360421321,2.44677679,66013.0,66012.0,0.001924]
[1722360421542,2.49950937,66013.0,66012.0,0.001924]
[1722360421814,2.51950937,66013.0,66012.0,0.001924]
[1722360422050,2.82247937,66013.0,66012.0,0.001924]
[1722360423808,2.82247937,66013.0,65984.0,0.0633]
[1722360423809,0.01,66002.0,65980.0,0.06394557]
[1722360424007,0.454675,65981.0,65980.0,0.00064557]
[1722360424209,0.45471,65976.0,65971.0,0.0633]
[1722360424609,0.75785,65976.0,65971.0,0.0633]
[1722360425427,1.06099,65976.0,65966.0,0.0602]
[1722360425654,0.75785,65976.0,65966.0,0.0602]
[1722360425824,0.75785,65976.0,65966.0,0.211792]
[1722360426649,0.75785,65976.0,65966.0,0.363382]
[1722360426878,0.75785,65976.0,65967.0,0.15159]
[1722360427060,0.303133,65978.0,65968.0,0.303176]
[1722360427269,0.15157,65976.0,65970.0,0.152507]
[1722360427466,0.15157,65976.0,65970.0,0.000924]
[1722360427467,0.45471,65976.0,65970.0,0.000924]
[1722360427688,0.75785,65976.0,65970.0,0.000924]
[1722360428549,1.06099,65976.0,65970.0,0.000924]
[1722360428757,1.46612024,65976.0,65970.0,0.000924]
[1722360428954,1.36002304,65976.0,65970.0,0.000924]
[1722360430037,1.76316304,65976.0,65970.0,0.000924]
[1722360430245,1.79316304,65976.0,65970.0,0.000924]
[1722360430448,2.09630304,65976.0,65970.0,0.000924]
[1722360430656,2.24699736,65976.0,65970.0,0.000924]
[1722360431068,2.24299736,65976.0,65970.0,0.000924]
[1722360431280,2.25699736,65976.0,65970.0,0.000924]
[1722360431487,1.374233,65971.0,65970.0,0.000924]
[1722360431696,2.58937774,65971.0,65970.0,0.000924]
[1722360431925,2.99254074,65971.0,65970.0,0.000924]
[1722360432129,2.42433058,65971.0,65970.0,0.000924]
[1722360432539,2.43433058,65971.0,65970.0,0.000924]
[1722360432712,2.42433058,65971.0,65970.0,0.000924]
[1722360433262,2.43433058,65971.0,65970.0,0.000924]
[1722360433463,2.45433058,65971.0,65970.0,0.000924]
[1722360433976,1.97826604,65971.0,65970.0,0.000924]
[1722360434179,1.39360304,65971.0,65970.0,0.000924]
[1722360434385,0.554744,65971.0,65970.0,0.000924]
[1722360434648,0.554744,65971.0,65970.0,0.001924]
[1722360434649,0.014,65971.0,65970.0,0.001924]
[1722360434848,0.151581,65971.0,65970.0,0.000924]
[1722360435057,0.757907,65971.0,65970.0,0.000924]
[1722360435268,1.67626604,65971.0,65970.0,0.001924]
[1722360435472,1.82696036,65971.0,65970.0,0.000924]
[1722360435798,1.67626604,65971.0,65970.0,0.000924]
[1722360435984,1.67926604,65971.0,65970.0,0.000924]
[1722360436177,1.16407,65971.0,65970.0,0.000924]
[1722360436576,0.860907,65971.0,65970.0,0.000924]
[1722360437177,0.557744,65971.0,65970.0,0.000924]
[1722360437376,0.860907,65971.0,65970.0,0.000924]
[1722360437587,0.874907,65971.0,65970.0,0.001924]
[1722360437813,1.41619374,65971.0,65970.0,0.001924]
[1722360437997,1.32570304,65971.0,65970.0,0.000924]
[1722360438197,1.33670304,65971.0,65970.0,0.001924]
[1722360438524,1.62586604,65971.0,65970.0,0.000924]
[1722360438673,1.32270304,65971.0,65970.0,0.000924]
[1722360438883,1.63586604,65971.0,65970.0,0.001924]
[1722360439084,1.61486604,65971.0,65970.0,0.000924]
[1722360439244,1.46239736,65971.0,65970.0,0.000924]
[1722360439444,1.46239736,65971.0,65970.0,0.001924]
[1722360439445,1.62886604,65971.0,65970.0,0.001924]
[1722360440077,1.76996604,65971.0,65970.0,0.001924]
[1722360440897,1.76596604,65971.0,65970.0,0.000924]
[1722360441095,1.92666036,65971.0,65970.0,0.001924]
[1722360441272,1.91666036,65971.0,65970.0,0.001924]
[1722360441523,1.90666036,65971.0,65970.0,0.000924]
[1722360441735,2.70268636,65971.0,65970.0,0.001924]
[1722360441941,2.71668636,65971.0,65970.0,0.001924]
[1722360442266,2.71668636,65971.0,65970.0,0.000924]
[1722360442468,2.73068636,65971.0,65970.0,0.001924]
[1722360442597,2.71668636,65971.0,65970.0,0.000924]
[1722360443408,2.41352336,65971.0,65970.0,0.000924]
[1722360444049,2.71668636,65971.0,65970.0,0.000924]
[1722360444251,2.73068636,65971.0,65970.0,0.000924]
[1722360445004,2.70268636,65971.0,65970.0,0.000924]
[1722360445221,2.71668636,65971.0,65970.0,0.000924]
[1722360445426,2.71668636,65971.0,65960.0,0.00853]
[1722360445427,2.000858,65961.0,65960.0,0.00853]
[1722360445654,2.000858,65961.0,65952.0,0.00853]
[1722360445655,0.484834,65958.0,65952.0,0.00853]
[1722360445977,1.64513604,65958.0,65952.0,0.00853]
[1722360446179,2.08855904,65958.0,65952.0,0.00853]
[1722360446311,2.54247636,65958.0,65952.0,0.00853]
[1722360446927,2.20925336,65958.0,65952.0,0.00853]
[1722360447129,2.05855904,65958.0,65952.0,0.00853]
[1722360447354,1.31191304,65958.0,65952.0,0.00853]
[1722360447985,1.91835904,65958.0,65952.0,0.00853]
[1722360448189,1.61513604,65958.0,65952.0,0.00853]
[1722360448521,1.31191304,65958.0,65952.0,0.00853]
[1722360448722,1.02269004,65958.0,65957.0,0.07363]
[1722360449026,1.31191304,65958.0,65957.0,0.07363]
[1722360449234,1.31191304,65958.0,65957.0,0.00853]
[1722360449622,1.60079521,65958.0,65957.0,0.00853]
[1722360449821,1.32591304,65958.0,65957.0,0.00853]
[1722360450787,1.16128,65958.0,65957.0,0.07363]
[1722360451013,1.17128,65958.0,65957.0,0.07363]
[1722360451391,1.16128,65958.0,65957.0,0.07363]
[1722360451592,1.17528,65958.0,65957.0,0.07363]
[1722360452288,1.292808,65958.0,65957.0,0.07363]
[1722360452494,1.17528,65958.0,65957.0,0.07363]
[1722360452664,1.16128,65958.0,65957.0,0.07363]
[1722360453217,0.151611,65958.0,65957.0,0.07363]
[1722360453430,0.454834,65958.0,65957.0,0.08658354]
[1722360453840,0.767057,65958.0,65957.0,0.07363]
[1722360454041,1.07028,65958.0,65957.0,0.00853]
[1722360454236,1.06128,65958.0,65957.0,0.00853]
[1722360454484,1.32404104,65958.0,65957.0,0.00853]
[1722360455157,1.21791304,65958.0,65957.0,0.00853]
[1722360455303,1.62113604,65958.0,65957.0,0.00853]
[1722360455526,1.61513604,65958.0,65957.0,0.00853]
[1722360455708,1.69793604,65958.0,65957.0,0.00853]
[1722360455921,1.70693604,65958.0,65957.0,0.00853]
[1722360456113,1.85763036,65958.0,65957.0,0.00853]
[1722360457085,2.23235336,65958.0,65957.0,0.00853]
[1722360457263,1.91913036,65958.0,65957.0,0.00853]
[1722360457472,2.13823036,65958.0,65957.0,0.00853]
[1722360457756,2.14823036,65958.0,65957.0,0.00853]
[1722360457958,2.13823036,65958.0,65957.0,0.00853]
[1722360458566,2.18132554,65958.0,65957.0,0.00853]
[1722360458707,2.17132554,65958.0,65957.0,0.00853]
[1722360459375,1.89072554,65958.0,65957.0,0.00853]
[1722360459578,1.80792554,65958.0,65957.0,0.00853]
[1722360460428,1.35400822,65958.0,65957.0,0.00853]
[1722360460592,1.34466121,65958.0,65957.0,0.00853]
[1722360460793,1.33566121,65958.0,65957.0,0.00853]
[1722360461195,1.34966121,65958.0,65957.0,0.00853]
[1722360461403,1.33566121,65958.0,65957.0,0.00853]
[1722360461717,1.47837343,65958.0,65957.0,0.00853]
[1722360461944,1.34866121,65958.0,65957.0,0.00853]
[1722360462717,1.33566121,65958.0,65957.0,0.00853]
[1722360462933,1.63888421,65958.0,65957.0,0.00853]
[1722360463333,1.63888421,65958.0,65957.0,0.00353]
[1722360464090,1.65288421,65958.0,65957.0,0.00353]
[1722360464452,1.63888421,65958.0,65957.0,0.00353]
[1722360464653,2.00867853,65958.0,65957.0,0.00353]
[1722360464873,2.02167853,65958.0,65957.0,0.00353]
[1722360465029,2.01867853,65958.0,65957.0,0.00353]
[1722360465457,2.03267853,65958.0,65957.0,0.00353]
[1722360465634,2.99356799,65958.0,65957.0,0.00353]
[1722360465853,2.97956799,65958.0,65957.0,0.00353]
[1722360466082,2.99356799,65958.0,65957.0,0.00353]
[1722360466495,1.697853,65953.0,65952.0,0.00853]
[1722360466703,1.91585128,65953.0,65952.0,0.00853]
[1722360466905,2.01585128,65953.0,65952.0,0.00853]
[1722360467073,1.99585128,65953.0,65952.0,0.00853]
[1722360467442,2.01585128,65953.0,65952.0,0.00853]
[1722360467761,2.1665456,65953.0,65952.0,0.00853]
[1722360467961,2.1465456,65953.0,65952.0,0.00853]
[1722360468176,1.8332996,65953.0,65952.0,0.00853]
[1722360468378,1.8472996,65953.0,65952.0,0.00853]
[1722360468578,1.39335928,65953.0,65952.0,0.00853]
[1722360469329,1.09011328,65953.0,65952.0,0.00853]
[1722360469534,1.39335928,65953.0,65952.0,0.00853]
[1722360469974,1.39346635,65953.0,65952.0,0.00853]
[1722360470597,1.37946635,65953.0,65952.0,0.00853]
[1722360471045,1.39346635,65953.0,65952.0,0.00853]
[1722360471250,1.37946635,65953.0,65952.0,0.00853]
[1722360471654,1.39046635,65953.0,65952.0,0.00853]
[1722360473191,1.39064323,65953.0,65952.0,0.00853]
[1722360473799,1.08739723,65953.0,65952.0,0.00853]
[1722360474000,1.08739723,65953.0,65952.0,0.07383]
[1722360475072,0.23027219,65953.0,65952.0,0.15283]
[1722360475277,0.53351819,65953.0,65952.0,0.15283]
[1722360475478,0.07878726,65953.0,65952.0,0.33581916]
[1722360475685,0.03474817,65953.0,65952.0,0.34881269]
[1722360476096,0.03474817,65953.0,65952.0,0.65206269]
[1722360476272,0.03474817,65953.0,65952.0,0.62069853]
[1722360476689,0.02477721,65953.0,65952.0,1.37783157]
[1722360476884,0.303136,65977.0,65972.0,0.1435]
[1722360477087,0.00924828,65978.0,65972.0,0.1435]
[1722360477088,0.1429997,65976.0,65972.0,0.1435]
[1722360477263,0.454731,65973.0,65972.0,0.1435]
[1722360477472,0.52093576,65973.0,65972.0,0.1435]
[1722360477686,0.82408976,65973.0,65972.0,0.1435]
[1722360478915,0.83608976,65973.0,65972.0,0.1435]
[1722360479219,0.07820476,65973.0,65972.0,0.1435]
[1722360479620,0.0782382,65973.0,65972.0,0.1435]
[1722360479870,0.49047606,65973.0,65972.0,0.1435]
[1722360480047,0.49047606,65973.0,65972.0,0.0604]
[1722360480048,0.79363006,65973.0,65972.0,0.0604]
[1722360480366,0.757942,65968.0,65967.0,0.1442]
[1722360480575,1.12745602,65968.0,65967.0,0.0645]
[1722360480782,1.12745602,65968.0,65952.0,0.01769598]
[1722360480783,1.061214,65962.0,65961.0,0.0655]
[1722360481009,1.12755102,65962.0,65961.0,0.0655]
[1722360481232,0.06633702,65962.0,65961.0,0.08023]
[1722360481433,0.06633702,65962.0,65961.0,0.535043]
[1722360481640,0.21793902,65962.0,65961.0,0.16203]
[1722360481834,0.06633702,65962.0,65961.0,0.16203]
[1722360482269,0.06633702,65962.0,65961.0,0.313634]
[1722360482493,0.06633702,65962.0,65961.0,0.62976456]
[1722360482679,0.06633702,65962.0,65961.0,0.17495156]
[1722360483109,0.06690682,65962.0,65961.0,0.17495156]
[1722360483457,0.06690682,65962.0,65961.0,0.17795156]
[1722360483618,0.06690682,65962.0,65961.0,0.0655]
[1722360483619,0.67331482,65962.0,65961.0,0.0655]
[1722360483818,0.82491682,65962.0,65961.0,0.0655]
[1722360484052,1.12812082,65962.0,65961.0,0.0695]
[1722360484487,1.12812082,65962.0,65961.0,0.004]
[1722360484715,1.12812082,65962.0,65957.0,0.1444]
[1722360484716,0.151611,65958.0,65957.0,0.1444]
[1722360484918,0.17535606,65958.0,65957.0,0.1444]
[1722360485141,0.78180206,65958.0,65957.0,0.15735354]
[1722360485575,0.78180206,65958.0,65957.0,0.1444]
[1722360485822,0.17535606,65958.0,65957.0,0.159693]
[1722360486196,0.02374506,65958.0,65957.0,0.17264654]
[1722360486627,0.151611,65958.0,65957.0,0.17264654]
[1722360486823,0.47857906,65958.0,65957.0,0.077993]
[1722360487145,0.47857906,65958.0,65957.0,0.0627]
[1722360487343,0.47729444,65958.0,65957.0,0.0627]
[1722360487545,0.47729444,65958.0,65957.0,0.07565354]
[1722360487781,0.47729444,65958.0,65957.0,0.09208189]
[1722360488210,0.47929444,65958.0,65957.0,0.09208189]
[1722360488510,0.47729444,65958.0,65957.0,0.09208189]
[1722360488665,0.17535606,65958.0,65957.0,0.09208189]
[1722360488875,0.02474506,65958.0,65957.0,0.09208189]
[1722360489077,0.02474506,65958.0,65957.0,0.54756746]
[1722360489285,0.02474506,65958.0,65957.0,0.07629911]
[1722360489491,0.78280206,65958.0,65957.0,0.07629911]
[1722360489722,1.2767311,65958.0,65957.0,0.01295354]
[1722360489926,0.758115,65953.0,65952.0,0.00853]
[1722360490153,1.27598384,65953.0,65952.0,0.00853]
[1722360490362,1.57922984,65953.0,65952.0,0.00853]
[1722360491224,1.57922984,65953.0,65952.0,0.01253]
[1722360491225,1.27598384,65953.0,65952.0,0.01253]
[1722360491449,1.27598384,65953.0,65952.0,0.00853]
[1722360492617,1.2357391,65953.0,65952.0,0.00853]
[1722360492740,1.27613033,65953.0,65952.0,0.00853]
[1722360495238,0.51900529,65953.0,65952.0,0.00853]
[1722360495514,0.17536806,65953.0,65952.0,0.00853]
[1722360495732,0.02374506,65953.0,65952.0,0.604305]
[1722360495950,0.02374506,65953.0,65952.0,0.67318777]
[1722360496155,0.151608,65960.0,65955.0,0.151618]
[1722360496267,0.151612,65958.0,65953.0,0.151622]
[1722360496468,0.17535979,65957.0,65954.0,0.09545811]
[1722360496671,0.02374579,65956.0,65954.0,0.09545811]
[1722360496977,0.5782,65965.0,65954.0,0.09545811]
[1722360496978,0.4782,65965.0,65956.0,0.0647]
[1722360497136,0.06373887,65964.0,65958.0,0.30322]
[1722360497349,0.002,65960.0,65958.0,0.30322]
[1722360497661,0.002,65960.0,65959.0,0.64271911]
[1722360497875,0.06573943,65960.0,65959.0,0.30264655]
[1722360498030,0.06573943,65960.0,65959.0,0.15103755]
[1722360498243,0.06373943,65960.0,65959.0,0.30264655]
[1722360498449,0.06309712,65960.0,65959.0,0.36323441]
[1722360499050,0.06309712,65960.0,65959.0,0.96967041]
[1722360499251,0.0231028,65960.0,65959.0,0.96967041]
[1722360499485,0.303169,65970.0,65963.0,0.151598]
[1722360499698,0.21128734,65969.0,65964.0,0.151597]
[1722360499910,0.36287834,65968.0,65964.0,0.01289758]
[1722360500054,0.151595,65966.0,65965.0,0.05821004]
[1722360500253,0.151595,65966.0,65959.0,0.1381]
[1722360500254,0.151601,65963.0,65959.0,0.1381]
[1722360500507,0.303191,65965.0,65960.0,0.05935896]
[1722360500508,0.21130334,65962.0,65960.0,0.05935896]
[1722360500736,0.05970034,65961.0,65960.0,0.05935896]
[1722360501098,0.05970034,65961.0,65960.0,0.21096596]
[1722360501522,0.05970034,65961.0,65960.0,0.51417996]
[1722360501727,0.05970034,65961.0,65960.0,0.81739396]
[1722360502293,0.05970034,65961.0,65960.0,0.51417996]
[1722360502493,0.02374504,65961.0,65960.0,0.05935896]
[1722360502693,0.17534904,65961.0,65960.0,0.05935896]
[1722360502892,0.05964513,65961.0,65959.0,0.1381]
[1722360503252,0.05964513,65960.0,65959.0,0.1381]
[1722360503833,0.51446613,65960.0,65959.0,0.1381]
[1722360504032,0.51446613,65960.0,65959.0,0.0631]
[1722360504267,0.454861,65954.0,65953.0,0.062]
[1722360504461,0.47860604,65954.0,65953.0,0.062]
[1722360504839,0.47860604,65954.0,65952.0,0.00853]
[1722360504840,0.454869,65953.0,65952.0,0.00853]
[1722360505012,0.47861404,65953.0,65952.0,0.00853]
[1722360505277,0.17536804,65953.0,65952.0,0.00853]
[1722360505863,0.47861404,65953.0,65952.0,0.00853]
[1722360506266,1.08510604,65953.0,65952.0,0.00853]
[1722360506621,1.08510604,65953.0,65952.0,0.01053]
[1722360506900,1.1214451,65953.0,65952.0,0.01053]
[1722360507108,1.08510604,65953.0,65952.0,0.00853]
[1722360507308,0.817945,65953.0,65952.0,0.00853]
[1722360507435,0.78186004,65953.0,65952.0,0.00853]
[1722360507642,1.23573908,65953.0,65952.0,0.00853]
[1722360507838,0.96857749,65953.0,65952.0,0.00853]
[1722360508425,1.27182349,65953.0,65952.0,0.00853]
[1722360509057,1.27187228,65953.0,65952.0,0.00853]
[1722360512472,1.27325719,65953.0,65952.0,0.00853]
[1722360514890,1.82041738,65953.0,65952.0,0.00853]
[1722360515089,1.74838778,65953.0,65952.0,0.00853]
[1722360515474,2.06163378,65953.0,65952.0,0.00853]
[1722360515710,2.20303378,65953.0,65952.0,0.00853]
[1722360516869,1.88978778,65953.0,65952.0,0.00853]
[1722360517072,2.19303378,65953.0,65952.0,0.00853]
[1722360517289,1.88978778,65953.0,65952.0,0.00853]
[1722360517650,2.3437281,65953.0,65952.0,0.00853]
[1722360517796,2.0404821,65953.0,65952.0,0.00853]
[1722360518735,2.0504821,65953.0,65952.0,0.00853]
[1722360518909,2.049419,65953.0,65952.0,0.00853]
[1722360519088,2.352665,65953.0,65952.0,0.00853]
[1722360519288,2.20197068,65953.0,65952.0,0.00853]
[1722360520090,2.68491668,65953.0,65952.0,0.00853]
[1722360520290,2.38167068,65953.0,65952.0,0.00853]
[1722360521101,2.39567068,65953.0,65952.0,0.00953]
[1722360521301,2.532365,65953.0,65952.0,0.00853]
[1722360521754,2.546365,65953.0,65952.0,0.00953]
[1722360521957,1.90272468,65953.0,65952.0,0.00953]
[1722360522162,1.86584926,65953.0,65952.0,0.00953]
[1722360522363,1.83133293,65953.0,65952.0,0.00953]
[1722360522958,1.76843293,65953.0,65952.0,0.00953]
[1722360523315,1.68993293,65953.0,65952.0,0.00953]
[1722360523519,1.13605389,65953.0,65952.0,0.00953]
[1722360524185,1.28668693,65953.0,65952.0,0.00953]
[1722360524700,1.27268693,65953.0,65952.0,0.00853]
[1722360524821,1.38368693,65953.0,65952.0,0.00953]
[1722360525234,1.38368693,65953.0,65952.0,0.00853]
[1722360525524,1.38327703,65953.0,65952.0,0.00853]
[1722360526886,1.39627703,65953.0,65952.0,0.00953]
[1722360527229,1.67552303,65953.0,65952.0,0.00853]
[1722360527586,1.68852303,65953.0,65952.0,0.00953]
[1722360527789,1.37227703,65953.0,65952.0,0.00853]
[1722360528197,1.38527703,65953.0,65952.0,0.00953]
[1722360528628,1.37227703,65953.0,65952.0,0.00853]
[1722360528854,0.52827689,65953.0,65952.0,0.07263]
[1722360528989,0.79486004,65953.0,65952.0,0.08888056]
[1722360529194,0.771115,65953.0,65952.0,0.10226419]
[1722360529409,0.79486212,65953.0,65952.0,0.10226419]
[1722360529621,0.013,65953.0,65952.0,0.08601363]
[1722360529960,0.467869,65953.0,65952.0,0.08601363]
[1722360530098,0.771115,65953.0,65952.0,0.08601363]
[1722360530294,0.758115,65953.0,65952.0,0.08501363]
[1722360530814,0.771115,65953.0,65952.0,0.07263]
[1722360531034,0.758115,65953.0,65952.0,0.07163]
[1722360531418,0.760115,65953.0,65952.0,0.07163]
[1722360531633,0.78386203,65953.0,65952.0,0.07163]
[1722360531836,0.47861603,65953.0,65952.0,0.087716]
[1722360532037,0.154623,65953.0,65952.0,0.087716]
[1722360532286,0.457869,65953.0,65952.0,0.087716]
[1722360532493,0.48161598,65953.0,65952.0,0.087716]
[1722360532696,0.48161598,65953.0,65952.0,0.10109963]
[1722360533295,0.457869,65953.0,65952.0,0.10109963]
[1722360533502,0.78486186,65953.0,65952.0,0.087716]
[1722360533702,0.761115,65953.0,65952.0,0.10109963]
[1722360533903,0.48161605,65953.0,65952.0,0.10109963]
[1722360534101,0.78486205,65953.0,65952.0,0.087716]
[1722360534661,0.48161605,65953.0,65952.0,0.087716]
[1722360534889,0.48161605,65953.0,65952.0,0.10109963]
[1722360535737,0.48161605,65953.0,65952.0,0.10059963]
[1722360536299,0.47861605,65953.0,65952.0,0.10059963]
[1722360536718,0.78386205,65953.0,65952.0,0.10059963]
[1722360536922,0.47861605,65953.0,65952.0,0.10059963]
[1722360537696,0.78186205,65953.0,65952.0,0.10159963]
[1722360537934,0.47861605,65953.0,65952.0,0.088216]
[1722360538137,0.78186205,65953.0,65952.0,0.088216]